fUSD/lending_fUSD_20241026
["ID","MTS","AMOUNT","RATE_DAILY","PERIOD"]
[340868107,1729963846463,-1453.385226,0.00060264,120]
[340868109,1729963846473,-166.421355,0.00060264,120]
[340868110,1729963846482,-10000.0,0.00060274,2]
[340868112,1729963846492,-199.9,0.00060437,120]
[340868114,1729963846502,-165.36,0.00060959,120]
[340868116,1729963846511,-1000.0,0.0006097,60]
[340868118,1729963846521,-500.0,0.0006097,60]
[340868120,1729963846530,-7456.37639446,0.00061222,14]
[340868122,1729963846540,-186.0,0.00061375,2]
[340868124,1729963846549,-178.34494402,0.00061589,120]
[340868126,1729963846559,-6861.67457477,0.00062065,15]
[340868128,1729963846569,-178.34494402,0.00062384,120]
[340868130,1729963846578,-152.0,0.0006243,3]
[340868131,1729963846587,-462.56,0.00062488,2]
[340868133,1729963846597,-7479.94345272,0.00062491,13]
[340868135,1729963846606,-415.4229983,0.00062498,120]
[340868137,1729963846616,-7456.37639446,0.00062501,14]
[340868138,1729963846625,-10186.8923,0.00062511,2]
[340868140,1729963846634,-270.0,0.000626,113]
[340868142,1729963846644,-200.0,0.0006283,120]
[340868144,1729963846653,-7479.94345272,0.00062889,13]
[340868146,1729963846663,-6861.67457477,0.00062899,15]
[340868148,1729963846672,-7456.37639446,0.0006319,15]
[340868150,1729963846683,-7479.94345272,0.0006319,13]
[340868152,1729963846693,-5000.0,0.000632,120]
[340868154,1729963846702,-800.0,0.00063527,120]
[340868155,1729963846711,-6861.67457477,0.00063732,15]
[340868157,1729963846721,-27528.22913168,0.000638,120]
[340868159,1729963846730,-14959.8869054,0.00063813,13]
[340868161,1729963846739,-1453.385226,0.00063813,120]
[340868163,1729963846749,-1453.385226,0.00063813,120]
[340868165,1729963846758,-22369.1291834,0.00063823,15]
[340868167,1729963846768,-14959.8869054,0.00063823,13]
[340868169,1729963846778,-36836.2084,0.00063833,2]
[340868170,1729963846787,-151.0,0.00063833,120]
[340868172,1729963846797,-151.0,0.00063833,120]
[340868174,1729963846806,-151.0,0.00063833,7]
[340868176,1729963846815,-151.0,0.00063833,120]
[340868178,1729963846825,-151.0,0.00063833,120]
[340868180,1729963846834,-151.0,0.00063833,120]
[340868182,1729963846843,-151.0,0.00063833,120]
[340868184,1729963846852,-171.127646,0.00063833,120]
[340868185,1729963846862,-171.085769,0.00063833,120]
[340868187,1729963846875,-7479.94345272,0.0006429,13]
[340868189,1729963846885,-4248.04812342,0.000643,2]
[340868191,1729963846894,-7456.37639446,0.00064556,15]
[340868193,1729963846904,-7479.94345272,0.00064556,13]
[340868195,1729963846914,-6861.67457477,0.00064566,15]
[340868197,1729963846924,-462.56,0.00064752,2]
[340868199,1729963846933,-8917.09647116,0.0006478,120]
[340868201,1729963846942,-1048.31224911,0.0006478,2]
[340868202,1729963846952,-13080.42367331,0.0006478,2]
[340868204,1729963846961,-187.41392366,0.0006478,2]
[340868206,1729963846971,-3112.3117289,0.0006478,2]
[340868208,1729963846981,-159.9711616,0.0006478,30]
[340868210,1729963846990,-1453.385226,0.0006486,120]
[340868212,1729963847000,-1453.385226,0.0006486,120]
[340868214,1729963847009,-52359.604169,0.0006486,13]
[340868216,1729963847020,-239.93699021,0.0006486,7]
[340868218,1729963847029,-111845.645917,0.0006487,15]
[340868220,1729963847039,-112199.151791,0.0006487,13]
[340868222,1729963847048,-1453.385226,0.0006487,120]
[340868224,1729963847057,-1453.385226,0.0006487,120]
[340868225,1729963847066,-500.0,0.00064873,15]
[340868227,1729963847076,-891253.51427116,0.0006488,30]
[340868230,1729963847090,-255.35500332,0.0006488,30]
[340868232,1729963847105,-2800.00477476,0.0006488,30]
[340868234,1729963847116,-2549.53963283,0.0006488,30]
[340869032,1729963861316,150.0,0.00019725,2]
[340869033,1729963861336,150.0,0.00019725,2]
[340869034,1729963862068,150.0,0.00021484,2]
[340869035,1729963862187,120.0,0.00021484,2]
[340869037,1729963921247,150.0,0.00019725,2]
[340869038,1729964075654,-2027.076382,0.000432,54]
[340869039,1729964075675,-503.139438,0.000433,54]
[340869040,1729964075695,-19253.78418,0.000443,2]
[340869042,1729964223453,165.36,0.00015342,2]
[340869046,1729964355695,150.0,0.00017433,2]
[340869070,1729965031930,-165.36,0.00039671,2]
[340869073,1729965031940,-651.67,0.00043114,7]
[340869076,1729965031949,-150.0,0.000433,54]
[340869079,1729965031959,-1629.19311255,0.00043414,10]
[340869082,1729965031969,-1022.35,0.000439,7]
[340869085,1729965031978,-300.0,0.000442,30]
[340869088,1729965031987,-1140.42131842,0.000443,2]
[340869091,1729965031999,-5785.06870158,0.000443,2]
[340869093,1729965032008,-1782.5261,0.000443,2]
[340869094,1729965032017,-454.73977873,0.0005111,120]
[340869095,1729965032026,-604.0,0.000539,120]
[340869096,1729965032035,-503.139438,0.000547,99]
[340869098,1729965032044,-500.0,0.00054795,120]
[340869100,1729965032053,-1252.0,0.00059309,120]
[340869101,1729965032062,-500.0,0.00059989,14]
[340869102,1729965032072,-1200.0,0.0006097,60]
[340869103,1729965032082,-400.0,0.0006097,60]
[340869104,1729965032091,-200.0,0.00061175,2]
[340869105,1729965032100,-170.44,0.00061211,2]
[340869106,1729965032109,-19053.34383059,0.00061309,2]
[340869107,1729965032120,-495.72833055,0.00061309,2]
[340869108,1729965032131,-2436.88550905,0.00061309,2]
[340869109,1729965032142,-1914.04232981,0.00061309,2]
[340869110,1729965032151,-361.18,0.00061392,2]
[340869111,1729965032160,-1000.0,0.00061444,120]
[340869112,1729965032169,-353.02,0.00061557,2]
[340869113,1729965032179,-150.39,0.00061831,120]
[340869114,1729965032188,-200.0,0.00061859,30]
[340869115,1729965032197,-150.0,0.00061899,7]
[340869116,1729965032206,-238.34,0.00062185,30]
[340869117,1729965032214,-412.94152736,0.0006267,7]
[340869118,1729965032224,-250.0,0.00062813,120]
[340869119,1729965032233,-186.0,0.00063129,2]
[340869120,1729965032242,-152.89,0.00063771,2]
[340869121,1729965032251,-353.02,0.00063821,2]
[340869122,1729965032261,-267.99,0.00063898,120]
[340869123,1729965032271,-165.36,0.00064,120]
[340869124,1729965032281,-23.80864863,0.0006424,2]
[340869125,1729965032292,-8606.23695535,0.0006424,2]
[340869126,1729965032311,-3361.87474075,0.0006424,2]
[340869127,1729965032321,-700.0,0.0006487,60]
[340869128,1729965032331,-400.0,0.0006487,60]
[340869129,1729965032340,-49558.47362545,0.0006488,30]
[340869130,1729965032349,-161.68230781,0.0006488,30]
[340869131,1729965032358,-794.8893,0.000649,2]
[340869132,1729965032368,-10503.4581,0.000649,2]
[340869133,1729965032377,-1473.2223,0.000649,2]
[340869134,1729965032386,-4237.94609156,0.00064998,15]
[340869135,1729965032396,-85280.84173557,0.00065,120]
[340869136,1729965032405,-4237.94609152,0.0006532,15]
[340869137,1729965032414,-4237.94609152,0.00065643,15]
[340869138,1729965032423,-214.97156899,0.00065653,37]
[340869139,1729965032432,-171.49522235,0.00065653,28]
[340869140,1729965032441,-29597.9277689,0.00065743,15]
[340869141,1729965032450,-500.0,0.00065753,120]
[340869142,1729965032460,-500.92416815,0.00065753,120]
[340869143,1729965032469,-500.0,0.00065753,120]
[340869144,1729965032478,-500.0,0.00065753,120]
[340869145,1729965032488,-500.0,0.00065753,120]
[340869146,1729965032496,-500.0,0.00065753,120]
[340869147,1729965032506,-500.0,0.00065753,120]
[340869148,1729965032515,-500.0,0.00065753,120]
[340869149,1729965032524,-531.71145138,0.00065753,120]
[340869150,1729965032533,-500.0,0.00065753,120]
[340869151,1729965032542,-500.0,0.00065753,120]
[340869152,1729965032551,-500.0,0.00065753,120]
[340869153,1729965032560,-500.0,0.00065753,120]
[340869154,1729965032569,-500.0,0.00065753,120]
[340869155,1729965032579,-500.0,0.00065753,120]
[340869156,1729965032588,-202.85887601,0.00065753,120]
[340869157,1729965032597,-500.0,0.00065753,120]
[340869158,1729965032606,-500.0,0.00065753,120]
[340869159,1729965032616,-500.0,0.00065753,120]
[340869160,1729965032628,-500.0,0.00065753,120]
[340869161,1729965032638,-500.0,0.00065753,120]
[340869162,1729965032646,-500.0,0.00065753,120]
[340869163,1729965032655,-500.0,0.00065753,120]
[340869164,1729965032665,-500.0,0.00065753,120]
[340869165,1729965032675,-500.0,0.00065753,120]
[340869166,1729965032685,-500.0,0.00065753,120]
[340869167,1729965032694,-500.0,0.00065753,120]
[340869168,1729965032703,-500.0,0.00065753,120]
[340869169,1729965032713,-500.0,0.00065753,120]
[340869170,1729965032722,-500.0,0.00065753,120]
[340869171,1729965032732,-500.0,0.00065753,120]
[340869172,1729965032741,-500.0,0.00065753,120]
[340869173,1729965032750,-500.0,0.00065753,120]
[340869174,1729965032758,-500.0,0.00065753,120]
[340869175,1729965032769,-500.0,0.00065753,60]
[340869176,1729965032780,-500.0,0.00065753,60]
[340869177,1729965032789,-500.0,0.00065753,120]
[340869178,1729965032798,-500.0,0.00065753,120]
[340869179,1729965032807,-504.77235129,0.00065753,120]
[340869180,1729965032816,-508.86907478,0.00065753,120]
[340869181,1729965032826,-500.0,0.00065753,120]
[340869182,1729965032835,-500.0,0.00065753,120]
[340869183,1729965032844,-500.0,0.00065753,120]
[340869184,1729965032853,-500.0,0.00065753,120]
[340869185,1729965032862,-500.0,0.00065753,120]
[340869186,1729965032871,-493.07776182,0.00065753,120]
[340869187,1729965032880,-454.22876261,0.00065753,120]
[340869188,1729965032889,-499.99999999,0.00065753,120]
[340869189,1729965032898,-506.00089248,0.00065753,120]
[340869190,1729965032907,-500.0,0.00065753,120]
[340869191,1729965032917,-499.58599372,0.00065753,120]
[340869192,1729965032927,-500.0,0.00065753,120]
[340869193,1729965032937,-500.0,0.00065753,120]
[340869194,1729965032946,-500.0,0.00065753,120]
[340869195,1729965032957,-500.0,0.00065753,120]
[340869196,1729965032967,-500.0,0.00065753,120]
[340869197,1729965032976,-500.0,0.00065753,120]
[340869198,1729965032985,-500.0,0.00065753,120]
[340869199,1729965032994,-500.0,0.00065753,120]
[340869200,1729965033003,-500.0,0.00065753,120]
[340869201,1729965033013,-500.0,0.00065753,120]
[340869202,1729965033022,-493.76014816,0.00065753,120]
[340869203,1729965033031,-500.0,0.00065753,120]
[340869204,1729965033040,-500.0,0.00065753,120]
[340869205,1729965033049,-500.0,0.00065753,120]
[340869206,1729965033058,-255.92143558,0.00065753,120]
[340869207,1729965033068,-500.0,0.00065753,120]
[340869208,1729965033077,-500.0,0.00065753,120]
[340869209,1729965033087,-401.48424823,0.00065753,120]
[340869210,1729965033096,-500.0,0.00065753,120]
[340869211,1729965033106,-500.0,0.00065753,120]
[340869212,1729965033115,-500.0,0.00065753,120]
[340869213,1729965033124,-500.0,0.00065753,120]
[340869214,1729965033134,-500.0,0.00065753,120]
[340869215,1729965033143,-500.0,0.00065753,120]
[340869216,1729965033152,-500.0,0.00065753,120]
[340869217,1729965033162,-500.0,0.00065753,120]
[340869218,1729965033171,-500.0,0.00065753,120]
[340869219,1729965033181,-549.32,0.00065753,120]
[340869220,1729965033190,-500.0,0.00065753,120]
[340869221,1729965033199,-500.0,0.00065753,120]
[340869222,1729965033209,-500.0,0.00065753,120]
[340869223,1729965033218,-194.88194042,0.00065753,120]
[340869224,1729965033227,-625.0865207,0.00065753,120]
[340869225,1729965033237,-500.0,0.00065753,120]
[340869226,1729965033246,-500.0,0.00065753,120]
[340869227,1729965033255,-505.62725126,0.00065753,120]
[340869228,1729965033264,-500.0,0.00065753,120]
[340869229,1729965033273,-509.17698407,0.00065753,120]
[340869230,1729965033283,-510.08337421,0.00065753,120]
[340869231,1729965033292,-202.20596655,0.00065753,120]
[340869232,1729965033302,-500.0,0.00065753,120]
[340869233,1729965033311,-500.0,0.00065753,120]
[340869234,1729965033320,-496.61078,0.00065753,120]
[340869235,1729965033330,-500.0,0.00065753,120]
[340869236,1729965033339,-532.92680603,0.00065753,120]
[340869237,1729965033348,-150.0,0.00065753,120]
[340869238,1729965033358,-506.2190313,0.00065753,120]
[340869239,1729965033367,-500.0,0.00065753,120]
[340869240,1729965033376,-500.0,0.00065753,120]
[340869241,1729965033385,-500.0,0.00065753,120]
[340869242,1729965033394,-449.22678478,0.00065753,120]
[340869243,1729965033403,-500.0,0.00065753,120]
[340869244,1729965033412,-500.0,0.00065753,120]
[340869245,1729965033421,-500.0,0.00065753,120]
[340869246,1729965033430,-569.64,0.00065753,120]
[340869247,1729965033439,-500.0,0.00065753,120]
[340869248,1729965033449,-500.0,0.00065753,120]
[340869249,1729965033458,-500.0,0.00065753,120]
[340869250,1729965033467,-500.0,0.00065753,120]
[340869251,1729965033477,-500.0,0.00065753,120]
[340869252,1729965033486,-500.0,0.00065753,120]
[340869253,1729965033495,-500.0,0.00065753,120]
[340869254,1729965033504,-500.0,0.00065753,120]
[340869255,1729965033513,-500.0,0.00065753,120]
[340869256,1729965033522,-500.0,0.00065753,120]
[340869257,1729965033532,-500.0,0.00065753,120]
[340869258,1729965033541,-500.0,0.00065753,120]
[340869259,1729965033550,-500.0,0.00065753,120]
[340869260,1729965033559,-500.0,0.00065753,120]
[340869261,1729965033568,-500.0,0.00065753,120]
[340869262,1729965033577,-500.0,0.00065753,120]
[340869263,1729965033589,-500.0,0.00065753,120]
[340869264,1729965033598,-500.0,0.00065753,120]
[340869265,1729965033607,-500.0,0.00065753,120]
[340869266,1729965033616,-500.0,0.00065753,120]
[340869267,1729965033625,-500.0,0.00065753,120]
[340869268,1729965033634,-500.0,0.00065753,120]
[340869269,1729965033645,-500.0,0.00065753,120]
[340869270,1729965033655,-528.37702791,0.00065753,120]
[340869271,1729965033664,-500.0,0.00065753,120]
[340869272,1729965033674,-500.0,0.00065753,7]
[340869273,1729965033683,-500.0,0.00065753,7]
[340869274,1729965033692,-500.0,0.00065753,7]
[340869275,1729965033701,-500.0,0.00065753,7]
[340869276,1729965033710,-500.0,0.00065753,7]
[340869277,1729965033719,-500.0,0.00065753,7]
[340869278,1729965033728,-500.0,0.00065753,7]
[340869279,1729965033738,-500.0,0.00065753,7]
[340869280,1729965033747,-500.0,0.00065753,7]
[340869281,1729965033757,-500.0,0.00065753,7]
[340869282,1729965033766,-500.0,0.00065753,7]
[340869283,1729965033775,-500.0,0.00065753,7]
[340869284,1729965033784,-991.25,0.00065753,120]
[340869285,1729965033793,-991.25,0.00065753,120]
[340869286,1729965033802,-991.25,0.00065753,120]
[340869287,1729965033811,-991.25,0.00065753,120]
[340869288,1729965033821,-991.25,0.00065753,120]
[340869289,1729965033830,-991.25,0.00065753,120]
[340869290,1729965033839,-991.25,0.00065753,120]
[340869291,1729965033848,-991.25,0.00065753,120]
[340869292,1729965033857,-991.25,0.00065753,120]
[340869293,1729965033866,-991.25,0.00065753,120]
[340869294,1729965033876,-991.25,0.00065753,120]
[340869295,1729965033885,-991.25,0.00065753,120]
[340869296,1729965033894,-500.0,0.00065753,120]
[340869297,1729965033903,-500.0,0.00065753,120]
[340869298,1729965033913,-500.0,0.00065753,120]
[340869299,1729965033922,-500.0,0.00065753,120]
[340869300,1729965033931,-500.0,0.00065753,120]
[340869301,1729965033941,-500.0,0.00065753,120]
[340869302,1729965033950,-500.0,0.00065753,120]
[340869303,1729965033959,-500.0,0.00065753,120]
[340869304,1729965033969,-500.0,0.00065753,120]
[340869305,1729965033979,-500.0,0.00065753,120]
[340869306,1729965033988,-500.0,0.00065753,120]
[340869307,1729965033997,-500.0,0.00065753,120]
[340869308,1729965034007,-455.47040286,0.00065753,120]
[340869309,1729965034016,-500.0,0.00065753,120]
[340869310,1729965034025,-500.0,0.00065753,120]
[340869311,1729965034034,-493.14814739,0.00065753,120]
[340869312,1729965034043,-1000.0,0.00065753,120]
[340869313,1729965034052,-500.0,0.00065753,120]
[340869314,1729965034062,-500.0,0.00065753,120]
[340869315,1729965034071,-500.0,0.00065753,120]
[340869316,1729965034082,-500.0,0.00065753,120]
[340869317,1729965034091,-186.88872955,0.00065753,120]
[340869318,1729965034102,-500.0,0.00065753,120]
[340869319,1729965034111,-577.14,0.00065753,120]
[340869320,1729965034120,-577.14,0.00065753,120]
[340869321,1729965034130,-577.14,0.00065753,120]
[340869322,1729965034140,-577.14,0.00065753,120]
[340869323,1729965034149,-577.14,0.00065753,120]
[340869324,1729965034159,-577.14,0.00065753,120]
[340869325,1729965034169,-577.14,0.00065753,120]
[340869326,1729965034178,-577.14,0.00065753,120]
[340869327,1729965034187,-577.14,0.00065753,120]
[340869328,1729965034196,-577.14,0.00065753,120]
[340869329,1729965034205,-577.14,0.00065753,120]
[340869330,1729965034215,-577.14,0.00065753,120]
[340869331,1729965034224,-500.0,0.00065753,120]
[340869332,1729965034234,-500.0,0.00065753,120]
[340869333,1729965034243,-498.95005,0.00065753,120]
[340869334,1729965034253,-500.90096617,0.00065753,60]
[340869335,1729965034262,-500.0,0.00065753,120]
[340869336,1729965034270,-500.0,0.00065753,120]
[340869337,1729965034280,-500.0,0.00065753,120]
[340869338,1729965034289,-500.0,0.00065753,120]
[340869339,1729965034298,-174.23159393,0.00065753,120]
[340869340,1729965034307,-500.0,0.00065753,120]
[340869341,1729965034316,-500.0,0.00065753,120]
[340869342,1729965034325,-500.0,0.00065753,120]
[340869343,1729965034334,-500.0,0.00065753,120]
[340869344,1729965034442,-500.0,0.00065753,120]
[340869345,1729965034452,-500.0,0.00065753,120]
[340869346,1729965034461,-500.0,0.00065753,120]
[340869347,1729965034470,-500.0,0.00065753,120]
[340869348,1729965034479,-500.0,0.00065753,120]
[340869349,1729965034488,-500.0,0.00065753,120]
[340869350,1729965034497,-500.0,0.00065753,120]
[340869351,1729965034506,-500.0,0.00065753,120]
[340869352,1729965034515,-500.0,0.00065753,120]
[340869353,1729965034525,-500.0,0.00065753,120]
[340869354,1729965034533,-500.0,0.00065753,120]
[340869355,1729965034542,-500.0,0.00065753,120]
[340869356,1729965034552,-2548.75,0.00065753,120]
[340869357,1729965034561,-500.0,0.00065753,120]
[340869358,1729965034571,-500.0,0.00065753,120]
[340869359,1729965034580,-500.0,0.00065753,120]
[340869360,1729965034589,-500.0,0.00065753,120]
[340869361,1729965034598,-386.8775265,0.00065753,120]
[340869362,1729965034608,-500.0,0.00065753,120]
[340869363,1729965034617,-500.0,0.00065753,120]
[340869364,1729965034626,-500.0,0.00065753,120]
[340869365,1729965034635,-500.0,0.00065753,120]
[340869366,1729965034647,-500.41463413,0.00065753,120]
[340869367,1729965034656,-500.0,0.00065753,120]
[340869368,1729965034665,-500.0,0.00065753,120]
[340869369,1729965034674,-429.18802522,0.00065753,120]
[340869370,1729965034684,-500.0,0.00065753,120]
[340869371,1729965034693,-500.0,0.00065753,120]
[340869372,1729965034702,-500.0,0.00065753,120]
[340869373,1729965034711,-500.0,0.00065753,120]
[340869374,1729965034723,-500.0,0.00065753,120]
[340869375,1729965034732,-500.0,0.00065753,120]
[340869376,1729965034741,-500.0,0.00065753,120]
[340869377,1729965034750,-500.0,0.00065753,120]
[340869378,1729965034759,-500.0,0.00065753,120]
[340869379,1729965034768,-500.0,0.00065753,120]
[340869380,1729965034777,-500.0,0.00065753,120]
[340869381,1729965034787,-500.0,0.00065753,120]
[340869382,1729965034795,-500.0,0.00065753,120]
[340869383,1729965034804,-500.0,0.00065753,120]
[340869384,1729965034813,-500.0,0.00065753,120]
[340869385,1729965034822,-500.0,0.00065753,120]
[340869386,1729965034831,-500.0,0.00065753,120]
[340869387,1729965034840,-1000.0,0.00065753,120]
[340869388,1729965034849,-500.0,0.00065753,120]
[340869389,1729965034858,-500.0,0.00065753,120]
[340869390,1729965034867,-500.0,0.00065753,120]
[340869391,1729965034875,-500.0,0.00065753,21]
[340869392,1729965034885,-500.0,0.00065753,120]
[340869393,1729965034894,-500.0,0.00065753,120]
[340869394,1729965034903,-728.73,0.00065753,120]
[340869395,1729965034912,-500.0,0.00065753,120]
[340869396,1729965034922,-500.0,0.00065753,120]
[340869397,1729965034931,-500.0,0.00065753,120]
[340869398,1729965034940,-500.0,0.00065753,120]
[340869399,1729965034950,-500.0,0.00065753,120]
[340869400,1729965034960,-500.0,0.00065753,120]
[340869401,1729965034970,-500.0,0.00065753,120]
[340869402,1729965034980,-500.0,0.00065753,120]
[340869403,1729965034989,-500.0,0.00065753,120]
[340869404,1729965034998,-1371.34,0.00065753,120]
[340869405,1729965035007,-781.49,0.00065753,120]
[340869406,1729965035017,-500.0,0.00065753,120]
[340869407,1729965035026,-631.66946415,0.00065753,120]
[340869408,1729965035037,-500.0,0.00065753,120]
[340869409,1729965035046,-500.0,0.00065753,120]
[340869410,1729965035055,-500.0,0.00065753,120]
[340869411,1729965035064,-500.0,0.00065753,120]
[340869412,1729965035074,-496.61078,0.00065753,120]
[340869413,1729965035084,-500.0,0.00065753,120]
[340869414,1729965035093,-1000.0,0.00065753,120]
[340869415,1729965035102,-509.33474492,0.00065753,120]
[340869416,1729965035111,-500.0,0.00065753,120]
[340869417,1729965035121,-500.0,0.00065753,3]
[340869418,1729965035131,-500.0,0.00065753,120]
[340869419,1729965035140,-500.0,0.00065753,120]
[340869420,1729965035149,-534.44751182,0.00065753,120]
[340869421,1729965035158,-1439.27,0.00065753,120]
[340869422,1729965035168,-500.0,0.00065753,120]
[340869423,1729965035177,-282.49925973,0.00065753,120]
[340869424,1729965035186,-511.71,0.00065753,120]
[340869425,1729965035196,-511.71,0.00065753,120]
[340869426,1729965035205,-511.71,0.00065753,120]
[340869427,1729965035215,-511.71,0.00065753,120]
[340869428,1729965035225,-511.71,0.00065753,120]
[340869429,1729965035234,-511.71,0.00065753,120]
[340869430,1729965035243,-500.0,0.00065753,120]
[340869431,1729965035252,-511.71,0.00065753,120]
[340869432,1729965035261,-511.71,0.00065753,120]
[340869433,1729965035270,-511.71,0.00065753,120]
[340869434,1729965035279,-511.71,0.00065753,120]
[340869435,1729965035288,-511.71,0.00065753,120]
[340869436,1729965035297,-511.71,0.00065753,120]
[340869437,1729965035306,-500.0,0.00065753,120]
[340869438,1729965035315,-500.0,0.00065753,120]
[340869439,1729965035324,-500.0,0.00065753,120]
[340869440,1729965035334,-500.0,0.00065753,120]
[340869441,1729965035343,-500.0,0.00065753,120]
[340869442,1729965035351,-455.31309658,0.00065753,120]
[340869443,1729965035360,-500.0,0.00065753,120]
[340869444,1729965035369,-500.0,0.00065753,120]
[340869445,1729965035378,-500.0,0.00065753,120]
[340869446,1729965035387,-218.8,0.00065753,120]
[340869447,1729965035396,-236.13643142,0.00065753,120]
[340869448,1729965035405,-155.38269385,0.00065753,120]
[340869449,1729965035414,-500.0,0.00065753,120]
[340869450,1729965035422,-867.4,0.00065753,120]
[340869451,1729965035431,-867.4,0.00065753,120]
[340869452,1729965035440,-867.4,0.00065753,120]
[340869453,1729965035448,-867.4,0.00065753,120]
[340869454,1729965035457,-867.4,0.00065753,120]
[340869455,1729965035466,-867.4,0.00065753,120]
[340869456,1729965035475,-500.79359587,0.00065753,120]
[340869457,1729965035485,-867.4,0.00065753,120]
[340869458,1729965035494,-867.4,0.00065753,120]
[340869459,1729965035502,-500.0,0.00065753,120]
[340869460,1729965035511,-867.4,0.00065753,120]
[340869461,1729965035520,-867.4,0.00065753,120]
[340869462,1729965035529,-867.4,0.00065753,120]
[340869463,1729965035538,-867.4,0.00065753,120]
[340869464,1729965035547,-500.0,0.00065753,120]
[340869465,1729965035556,-500.0,0.00065753,120]
[340869466,1729965035566,-500.0,0.00065753,120]
[340869467,1729965035575,-500.0,0.00065753,120]
[340869468,1729965035584,-1500.0,0.00065753,120]
[340869469,1729965035593,-500.0,0.00065753,120]
[340869470,1729965035602,-500.0,0.00065753,30]
[340869471,1729965035611,-669.72,0.00065753,120]
[340869472,1729965035620,-481.48183822,0.00065753,120]
[340869473,1729965035629,-4102.66527734,0.00065753,120]
[340869474,1729965035638,-528.53483596,0.00065753,120]
[340869475,1729965035647,-770.68985393,0.00065753,120]
[340869476,1729965035657,-159.711936,0.0006586,15]
[340869477,1729965035667,-11839.1711075,0.0006589,15]
[340869478,1729965035676,-500.0,0.00065899,120]
[340869479,1729965035685,-18690.094185,0.000659,2]
[340869480,1729965035695,-4237.94609152,0.00065965,15]
[340869481,1729965035704,-200.0,0.00066,120]
[340869482,1729965035714,-353.02,0.00066085,2]
[340869483,1729965035723,-5919.58555377,0.00066177,16]
[340869484,1729965035733,-3825.2873,0.00066187,120]
[340869485,1729965035743,-500.0,0.00066276,120]
[340869486,1729965035753,-781.49,0.00066276,120]
[340869487,1729965035762,-500.0,0.00066276,120]
[340869488,1729965035772,-500.0,0.00066276,120]
[340869489,1729965035782,-1439.27,0.00066276,120]
[340869490,1729965035791,-500.0,0.00066276,120]
[340869491,1729965035800,-500.0,0.00066276,120]
[340869492,1729965035809,-500.0,0.00066276,120]
[340869493,1729965035818,-669.72,0.00066276,120]
[340869494,1729965035827,-5919.58555377,0.00066277,16]
[340869495,1729965035837,-500.0,0.00066286,120]
[340869496,1729965035846,-500.0,0.00066286,120]
[340869497,1729965035856,-475.40247685,0.00066286,120]
[340869498,1729965035865,-500.0,0.00066286,120]
[340869499,1729965035874,-500.0,0.00066286,120]
[340869500,1729965035883,-500.0,0.00066286,120]
[340869501,1729965035893,-500.0,0.00066286,120]
[340869502,1729965035903,-500.0,0.00066286,120]
[340869503,1729965035912,-500.0,0.00066286,120]
[340869504,1729965035921,-500.0,0.00066287,120]
[340869505,1729965035931,-500.0,0.00066287,120]
[340869506,1729965035940,-500.0,0.00066287,120]
[340869507,1729965035950,-500.0,0.00066287,120]
[340869508,1729965035959,-500.0,0.00066287,120]